bitfinex/quotes_ETHUSD_20251218
["timestamp","ask_amount","ask_price","bid_price","bid_amount"]
[1766066099275,0.596,2968.8,2968.1,0.88069992]
[1766066099589,53.83842973,2969.8,2968.5,0.10157612]
[1766066099590,54.43442973,2969.8,2968.5,0.10157612]
[1766066099760,54.43442973,2969.8,2968.7,0.10157612]
[1766066099898,54.43442973,2969.8,2968.8,0.00847184]
[1766066100097,54.43442973,2969.8,2968.8,0.25231718]
[1766066100297,2.60946842,2969.7,2968.8,2.5147]
[1766066100496,50.30003155,2969.8,2968.9,2.5147]
[1766066100718,46.92809825,2969.8,2969.0,7.46]
[1766066100905,46.92809825,2969.8,2969.1,2.977104]
[1766066100906,40.3363197,2969.8,2969.1,2.977104]
[1766066101107,40.3363197,2969.8,2969.1,10.437104]
[1766066101334,40.3363197,2969.8,2969.2,2.5716]
[1766066101536,40.3363197,2969.8,2968.6,2.67317612]
[1766066101707,40.3363197,2969.8,2968.8,10.0316]
[1766066101903,40.3363197,2969.8,2968.7,0.405504]
[1766066102122,40.3363197,2969.8,2968.6,2.67317612]
[1766066102325,40.3363197,2969.8,2968.7,0.00847085]
[1766066102533,40.3363197,2969.8,2968.8,10.0316]
[1766066102841,0.002,2969.7,2968.9,2.5716]
[1766066103219,7.8328,2969.6,2968.5,0.405504]
[1766066103756,2.5889,2969.3,2968.1,0.88069992]
[1766066103979,8.68669,2969.2,2968.1,0.88069992]
[1766066104549,0.85389,2969.2,2968.1,7.77989638]
[1766066104847,0.595,2969.2,2968.3,0.405504]
[1766066105159,0.595,2969.2,2968.0,0.10157612]
[1766066105769,0.595,2969.4,2968.7,1.1e-07]
[1766066106178,0.002,2969.7,2968.7,0.00847606]
[1766066106491,36.36872732,2969.8,2969.1,0.10157612]
[1766066106648,36.36872732,2969.8,2969.3,0.10157612]
[1766066106649,22.69214856,2969.8,2969.3,0.10157612]
[1766066106975,12.5778259,2969.8,2969.5,0.10157612]
[1766066107122,9.20646077,2969.8,2969.6,0.405504]
[1766066107324,22.14353047,2970.1,2969.6,0.405504]
[1766066107674,10.61043902,2970.2,2970.0,0.405504]
[1766066107880,12.18281643,2970.3,2970.1,0.10157612]
[1766066108164,4.23744924,2970.3,2970.1,0.10157612]
[1766066108374,4.23744924,2970.3,2969.3,0.594]
[1766066108537,4.23744924,2970.3,2969.5,30.0]
[1766066108858,4.23744924,2970.3,2969.5,0.405504]
[1766066109536,4.23744924,2970.3,2968.8,0.594]
[1766066109537,0.002,2969.8,2968.8,0.594]
[1766066109728,0.002,2969.8,2968.8,3.96234058]
[1766066109927,0.002,2969.8,2968.9,0.999504]
[1766066110164,0.002,2969.8,2968.9,4.36770525]
[1766066110461,0.002,2969.8,2969.1,0.405504]
[1766066110664,0.002,2969.8,2969.2,0.00846433]
[1766066111374,0.002,2969.8,2969.3,0.405504]
[1766066111584,4.23744924,2970.3,2969.3,0.405504]
[1766066111731,14.65914924,2970.3,2969.3,0.405504]
[1766066111966,4.23744924,2970.3,2969.1,0.405504]
[1766066112282,4.23744924,2970.3,2969.1,3.77351727]
[1766066112646,0.593,2970.2,2969.1,0.405504]
[1766066113069,0.593,2970.2,2968.5,10.0]
[1766066113267,0.593,2970.2,2967.9,22.761]
[1766066113268,2.5754,2969.9,2967.9,22.761]
[1766066113584,0.593,2970.2,2968.3,8.9954146]
[1766066113735,10.8967,2970.2,2968.3,8.9954146]
[1766066113936,10.3037,2970.1,2968.3,8.9954146]
[1766066114151,10.3037,2970.1,2968.3,9.95425606]
[1766066114680,13.67067168,2970.1,2968.3,9.95425606]
[1766066114887,10.3037,2970.0,2968.3,9.95425606]
[1766066115095,7.7283,2970.0,2968.4,0.405504]
[1766066115312,2.5754,2969.7,2968.4,0.405504]
[1766066115440,0.593,2969.6,2968.2,0.10157612]
[1766066115646,7.7283,2969.3,2968.2,0.10157612]
[1766066115890,10.3037,2969.1,2967.8,0.10157612]
[1766066116069,0.592,2969.0,2967.8,0.10157612]
[1766066116577,0.592,2969.0,2967.8,0.44869821]
[1766066116986,0.592,2969.0,2967.8,0.10157612]
[1766066117230,7.7283,2968.9,2967.5,0.10157612]
[1766066117504,10.696474,2969.0,2966.9,0.10157612]
[1766066117646,7.7283,2968.6,2968.3,0.001]
[1766066117848,10.3037,2968.2,2966.9,0.10157612]
[1766066118100,10.3037,2968.2,2967.0,0.75985933]
[1766066118396,10.3037,2968.2,2967.1,0.001]
[1766066119258,0.592,2968.5,2967.1,0.001]
[1766066119662,0.592,2968.5,2967.2,0.001]
[1766066119891,0.592,2968.5,2967.3,0.10157612]
[1766066120195,0.592,2968.5,2967.1,0.50808012]
[1766066120196,10.3037,2968.3,2967.1,0.10257612]
[1766066120486,7.7283,2968.2,2967.1,0.001]
[1766066120689,7.32944974,2968.5,2965.9,0.001]
[1766066120690,7.7283,2967.7,2965.9,0.001]
[1766066120886,10.8957,2967.6,2965.9,0.01154226]
[1766066122002,10.3037,2967.5,2965.9,0.88142649]
[1766066122204,10.3037,2967.5,2965.9,0.003]
[1766066122597,13.67361379,2967.5,2965.9,0.003]
[1766066122918,10.3037,2967.5,2966.0,0.405504]
[1766066123116,13.67355037,2967.5,2966.0,0.405504]
[1766066123338,0.46438023,2968.4,2966.0,0.405504]
[1766066123339,5.89039879,2970.3,2967.2,0.10157612]
[1766066123544,5.89039879,2970.3,2969.5,0.10157612]
[1766066123545,4.23944924,2970.3,2969.5,0.10157612]
[1766066123724,0.36959659,2969.5,2969.4,0.405504]
[1766066124043,4.23944924,2970.3,2969.3,0.10157612]
[1766066124327,0.593,2970.2,2969.3,0.10157612]
[1766066124822,10.8967,2970.2,2968.9,0.10157612]
[1766066125024,0.593,2970.2,2968.9,0.10157612]
[1766066125185,3.95978383,2970.2,2968.9,0.10157612]
[1766066125519,4.23944924,2970.3,2969.5,0.10157612]
[1766066125821,4.23944924,2970.3,2969.0,0.593]
[1766066125822,0.0012,2970.3,2968.3,10.0]
[1766066126036,0.0012,2970.3,2969.1,0.405504]
[1766066126235,0.0012,2970.3,2969.0,10.0]
[1766066126236,0.0012,2970.3,2968.9,0.405504]
[1766066126403,0.0012,2970.3,2968.9,0.00846135]
[1766066126602,0.0012,2970.3,2968.9,0.00846193]
[1766066126927,0.0012,2970.3,2969.0,0.00846106]
[1766066127334,0.0012,2970.3,2968.8,0.10157612]
[1766066128929,10.3049,2970.3,2968.8,0.10157612]
[1766066129616,10.3037,2970.2,2968.8,0.10157612]
[1766066129816,0.592,2970.1,2968.6,0.10157612]
[1766066130026,10.3037,2970.0,2968.6,0.10157612]
[1766066130202,10.8957,2970.1,2968.6,0.10157612]
[1766066130738,3.36700336,2970.0,2968.6,0.10157612]
[1766066130896,6.73400672,2970.0,2968.6,0.10157612]
[1766066131230,3.36700336,2970.0,2968.6,0.10157612]
[1766066131397,3.36700336,2970.0,2968.3,0.00846887]
[1766066131398,6.73400672,2970.0,2968.3,0.00846887]
[1766066131731,6.73400672,2970.0,2968.4,0.00847482]
[1766066131915,6.73400672,2970.0,2968.2,0.00847481]
[1766066132627,10.3037,2969.9,2968.2,0.00847481]
[1766066132933,13.67091181,2969.9,2968.2,0.00847481]
[1766066133135,17.03812362,2969.9,2968.2,0.00847481]
[1766066133596,10.3037,2969.8,2968.2,0.00847481]
[1766066133802,10.8957,2969.7,2968.2,0.00847481]
[1766066134311,10.8957,2969.7,2968.0,0.41398394]
[1766066134516,10.8957,2969.7,2968.2,0.00848051]
[1766066134816,10.86447406,2969.6,2968.0,0.00848051]
[1766066135018,7.7283,2969.2,2968.7,0.10157612]
[1766066135236,0.591,2969.1,2968.9,1e-08]
[1766066136020,0.591,2969.1,2968.7,0.10157612]
[1766066136222,0.591,2969.1,2968.9,0.10157612]
[1766066136916,9.31167484,2969.0,2968.3,0.10157612]
[1766066137121,9.31167484,2969.0,2968.5,0.10157612]
[1766066137449,6.73627484,2969.0,2968.3,0.10157612]
[1766066137806,9.31167484,2969.0,2968.3,0.10157612]
[1766066138011,0.591,2969.1,2968.8,0.10157612]
[1766066138211,3.95902398,2969.1,2968.8,0.07799574]
[1766066138414,3.3676837,2969.4,2968.8,0.07799574]
[1766066138624,17.03725328,2970.2,2969.3,0.10157612]
[1766066138815,0.591,2970.1,2969.3,0.10157612]
[1766066139052,6.73400672,2970.0,2969.3,0.10157612]
[1766066139262,10.3037,2969.8,2969.0,0.10157612]
[1766066139408,0.591,2969.7,2969.0,0.10157612]
[1766066140426,10.3037,2969.6,2969.0,0.10157612]
[1766066140748,0.0012,2970.3,2969.5,0.10157612]
[1766066140963,0.591,2970.2,2969.5,0.10157612]
[1766066141458,0.1662,2970.2,2969.7,0.10157612]
[1766066141957,0.1662,2970.2,2969.6,0.10157612]
[1766066142112,0.1682,2970.2,2969.6,0.10157612]
[1766066142314,0.1682,2970.2,2969.8,0.10157612]
[1766066142905,3.53499565,2970.2,2969.3,0.10157612]
[1766066143109,13.73619565,2970.2,2969.3,0.10157612]
[1766066143338,0.1682,2970.2,2969.3,0.10157612]
[1766066144053,3.53499316,2970.2,2969.3,0.10157612]
[1766066144551,10.26856296,2970.2,2968.9,0.10157612]
[1766066144881,10.2012,2970.0,2968.9,0.10157612]
[1766066145082,6.73423346,2969.9,2968.9,0.10157612]
[1766066145234,0.591,2969.8,2968.9,0.10157612]
[1766066145630,0.591,2969.8,2969.1,0.10157612]
[1766066146287,0.591,2969.8,2968.9,0.10157612]
[1766066146501,0.002,2971.5,2971.3,3.36966178]
[1766066146779,0.591,2973.5,2971.9,0.405504]
[1766066146984,0.591,2973.5,2972.0,0.03364737]
[1766066146985,2.5017,2973.3,2972.0,0.03364737]
[1766066147184,10.2012,2972.8,2970.9,0.405504]
[1766066147366,10.2012,2972.8,2971.4,0.46438023]
[1766066147679,10.2012,2973.4,2971.6,30.0]
[1766066147846,0.591,2973.3,2972.1,0.405504]
[1766066148181,0.591,2973.2,2971.5,0.38298797]
[1766066148484,0.591,2973.2,2971.8,0.86988423]
[1766066148689,0.591,2973.2,2971.8,0.03364963]
[1766066148893,0.591,2973.2,2970.9,7.47961496]
[1766066148894,10.2012,2973.1,2971.1,0.405504]
[1766066149045,3.36349265,2973.1,2971.3,0.405504]
[1766066149245,10.2012,2973.0,2971.1,0.03365756]
[1766066149445,10.2012,2973.0,2971.5,0.405504]
[1766066149644,0.591,2973.2,2970.8,0.20963599]
[1766066149645,3.95437952,2973.2,2970.8,0.20963599]
[1766066149889,3.95437952,2973.2,2971.3,0.86988423]
[1766066150063,7.6995,2972.9,2971.3,0.86988423]
[1766066150389,0.5902,2972.8,2971.3,0.86988423]
[1766066150564,0.5902,2972.8,2971.3,1.29680264]
[1766066151077,0.5902,2972.8,2971.4,0.03365416]
[1766066151274,0.5902,2972.8,2971.3,0.83242241]
[1766066151676,0.5902,2972.8,2971.4,0.03365416]
[1766066151874,0.5902,2972.8,2971.5,0.405504]
[1766066152249,10.7914,2972.8,2970.9,0.03365983]
[1766066152490,10.2012,2972.7,2971.0,0.86988423]
[1766066152688,10.7922,2972.6,2971.2,0.405504]
[1766066153119,10.7922,2972.6,2971.1,0.405504]
[1766066153286,10.7922,2972.6,2971.1,0.86988423]
[1766066153620,10.7922,2972.6,2971.2,0.88794726]
[1766066153795,10.2012,2972.6,2971.0,0.405504]
[1766066154120,10.7922,2972.5,2971.2,0.46438023]
[1766066154325,10.7922,2972.5,2971.0,4.2356757]
[1766066154483,10.7922,2972.5,2971.0,0.86988423]
[1766066154682,10.7922,2972.5,2971.0,0.405504]
[1766066154918,0.591,2972.5,2971.0,0.405504]
[1766066155088,10.2012,2972.3,2970.9,0.405504]
[1766066155495,10.2012,2972.3,2971.1,0.405504]
[1766066155925,3.95518662,2972.5,2970.9,0.405504]
[1766066155926,3.3643103,2972.4,2970.9,0.405504]
[1766066156150,10.2012,2972.1,2971.1,0.405504]
[1766066156353,0.591,2972.0,2971.1,0.405504]
[1766066156651,0.591,2972.0,2970.9,0.405504]
[1766066156946,0.591,2972.0,2971.1,0.10157612]
[1766066157927,10.7922,2972.0,2970.7,0.03366209]
[1766066158152,10.6852253,2972.0,2970.5,0.10157612]
[1766066158315,0.03363526,2971.9,2970.5,0.10157612]
[1766066158510,14.0499755,2972.0,2970.5,0.10157612]
[1766066158511,7.6995,2971.4,2970.5,0.10157612]
[1766066158720,2.12158905,2972.5,2970.5,0.10157612]
[1766066158721,104.7384641,2975.8,2974.1,0.405504]
[1766066158953,104.7384641,2975.8,2973.6,0.10157612]
[1766066158954,104.7384641,2975.8,2974.7,0.4013]
[1766066159121,236.65871204,2976.5,2974.8,2.13553569]
[1766066159122,0.591,2975.7,2974.8,2.13553569]
[1766066159316,0.591,2975.6,2975.1,0.405504]
[1766066159520,240.99852523,2976.5,2975.4,0.405504]
[1766066159521,0.591,2975.9,2975.4,0.405504]
[1766066159759,0.591,2975.8,2975.4,0.405504]
[1766066159931,0.591,2975.8,2974.9,0.10157612]
[1766066160137,0.591,2975.8,2975.2,0.405504]
[1766066160344,0.591,2975.8,2974.9,0.10157612]
[1766066160916,233.29902523,2976.5,2975.2,0.405504]
[1766066161140,233.29902523,2976.5,2975.1,0.10157612]
[1766066161141,233.29902523,2976.5,2975.7,30.0]
[1766066161454,17.95607023,2976.7,2975.9,0.10157612]
[1766066161756,17.95607023,2976.7,2976.0,0.405504]
[1766066161918,18.54707023,2976.7,2976.0,0.405504]
[1766066163157,17.95607023,2976.7,2976.0,0.405504]
[1766066163320,17.95607023,2976.7,2975.5,0.03360779]
[1766066163520,3.35953772,2976.6,2974.4,0.10157612]
[1766066163728,3.35953772,2976.6,2974.5,30.01678207]
[1766066163729,10.9581,2976.5,2974.5,30.01678207]
[1766066163934,10.9581,2976.5,2974.6,0.01678151]
[1766066164249,10.3671,2976.3,2974.4,0.01678151]
[1766066164451,0.591,2976.5,2973.9,0.48116626]
[1766066164660,7.9865,2976.2,2974.0,30.0]
[1766066164963,10.3671,2976.0,2974.1,0.0167945]
[1766066165373,10.3671,2975.9,2974.1,0.0167945]
[1766066165666,10.3671,2975.7,2973.8,0.10157612]
[1766066165874,0.59,2975.6,2973.8,0.11837909]
[1766066166069,0.59,2975.6,2973.6,0.01680355]
[1766066166233,10.3671,2975.2,2973.3,0.0168075]
[1766066166438,7.47961496,2975.8,2973.3,0.0168075]
[1766066166439,10.3671,2975.0,2973.3,0.0168075]
[1766066166632,10.3671,2974.8,2973.0,0.01681937]
[1766066166878,10.3671,2974.8,2972.5,7.47961496]
[1766066166879,10.3671,2974.8,2973.2,0.01682107]
[1766066167190,2.3806,2974.7,2972.7,0.01682334]
[1766066167429,9.10419308,2974.6,2972.7,0.48120357]
[1766066167570,9.10419308,2974.6,2972.7,0.01682334]
[1766066167571,0.59,2974.5,2972.7,0.01682334]
[1766066167934,9.10419308,2974.6,2973.0,0.10157612]
[1766066167935,2.3806,2974.6,2973.0,0.10157612]
[1766066168140,0.59,2974.5,2973.2,24.119]
[1766066168340,0.59,2974.5,2973.3,0.01682616]
[1766066169080,0.59,2974.4,2973.3,0.01682616]
[1766066169394,0.59,2974.4,2973.4,0.01682672]
[1766066169541,0.59,2974.4,2973.2,0.01682672]
[1766066169542,3.95202259,2974.4,2973.2,0.01682672]
[1766066169748,3.95202259,2974.4,2973.1,0.42233186]
[1766066170480,0.59,2974.3,2973.1,0.42233186]
[1766066170685,0.59,2974.3,2973.2,0.10157612]
[1766066170884,3.36100561,2975.3,2974.0,0.405504]
[1766066171038,3.36100561,2975.3,2973.6,0.10157612]
[1766066171039,0.92610644,2975.2,2973.6,0.10157612]
[1766066171243,0.92610644,2975.2,2973.7,0.01681146]
[1766066171443,2.3806,2974.9,2973.7,0.01681146]
[1766066171640,7.9865,2974.8,2973.5,0.405504]
[1766066171895,0.59,2974.7,2973.3,0.42232451]
[1766066172050,7.9865,2974.4,2973.6,0.01681768]
[1766066172242,17.0895631,2975.1,2973.3,0.405504]
[1766066172443,7.94399519,2975.9,2973.9,0.405504]
[1766066172444,0.59,2975.0,2973.9,0.405504]
[1766066172648,0.59,2975.0,2973.7,0.0168092]
[1766066172855,0.59,2975.0,2973.2,0.405504]
[1766066173056,0.59,2975.0,2973.3,0.01682051]
[1766066173564,16.94404104,2974.8,2973.3,0.01682051]
[1766066173760,16.94404104,2974.8,2973.4,0.01682277]
[1766066173952,16.94404104,2974.8,2973.1,0.01682277]
[1766066174379,2.472,2974.7,2973.1,0.01682277]
[1766066174760,10.2209,2974.7,2973.1,0.01682277]
[1766066174995,0.5892,2974.6,2973.2,0.01682786]
[1766066175399,3.36190956,2974.5,2973.2,0.01682786]
[1766066175599,3.95099706,2974.6,2973.2,0.01682786]
[1766066175781,3.95099706,2974.6,2972.8,0.88671209]
[1766066175782,7.31279412,2974.6,2972.8,0.88671209]
[1766066176005,3.95099706,2974.6,2973.0,0.405504]
[1766066176182,3.95099706,2974.6,2973.1,0.01683012]
[1766066177361,0.002,2975.2,2973.4,0.10157612]
[1766066177625,0.002,2975.2,2973.4,0.11839154]
[1766066177626,0.59,2975.1,2973.4,0.11839154]
[1766066178027,0.002,2975.2,2973.8,0.10157612]
[1766066178321,0.002,2975.2,2973.9,0.0168092]
[1766066178529,0.59,2975.1,2973.8,0.11838532]
[1766066178820,0.59,2975.0,2973.8,0.10157612]
[1766066179006,0.59,2975.0,2973.7,0.405504]
[1766066179610,3.95136617,2975.0,2973.7,0.405504]
[1766066180614,7.31273234,2975.0,2973.7,0.405504]
[1766066181120,17.53363234,2975.0,2973.7,0.405504]
[1766066181421,6.72359308,2974.6,2973.4,0.10157612]
[1766066181622,0.59,2974.5,2973.4,0.10157612]
[1766066181919,0.59,2974.5,2973.1,0.10157612]
[1766066182922,0.59,2974.5,2973.2,0.405504]
[1766066183430,0.59,2974.4,2973.4,0.405504]
[1766066183632,0.59,2974.4,2973.1,0.01682729]
[1766066183946,0.59,2974.4,2972.9,0.56595635]
[1766066183947,0.59,2974.3,2973.0,0.42233128]
[1766066184243,10.2209,2974.1,2971.9,0.10157612]
[1766066184452,8.96419891,2973.6,2971.6,0.10157612]
[1766066184599,7.7489,2973.1,2971.2,0.01686634]
[1766066184801,10.2209,2972.8,2971.2,0.01686634]
[1766066185043,0.59,2972.7,2971.2,0.01686634]
[1766066185350,10.2209,2973.3,2971.3,0.46438023]
[1766066185491,1.76070574,2974.7,2971.4,0.75685615]
[1766066185492,3.95337952,2973.2,2971.4,0.75685615]
[1766066185693,10.2209,2973.1,2971.4,0.48125223]
[1766066185888,10.68013856,2973.2,2971.4,0.016872]
[1766066186131,7.7489,2973.1,2971.3,0.11844812]
[1766066186346,7.7489,2972.7,2971.0,0.001]
[1766066186495,10.2209,2972.5,2971.0,0.001]
[1766066186835,0.59,2972.6,2971.0,0.001]
[1766066186993,7.7489,2972.1,2971.0,0.001]
[1766066187199,0.59,2972.0,2971.2,0.10157612]
[1766066187429,3.36496399,2971.8,2971.2,0.10157612]
[1766066187642,0.59,2971.7,2971.2,0.10157612]
[1766066188437,8.96419891,2972.7,2971.0,0.001]
[1766066188604,7.7489,2972.2,2971.0,0.10257612]
[1766066188808,10.8109,2972.1,2971.0,0.10257612]
[1766066189022,10.2209,2972.0,2971.0,0.10257612]
[1766066189544,0.59,2972.1,2971.0,0.001]
[1766066189545,13.58575076,2971.9,2971.0,0.001]
[1766066189725,16.95060152,2971.9,2971.0,0.001]
[1766066190046,13.58575076,2971.9,2971.0,0.001]
[1766066190203,10.2209,2971.8,2971.0,0.001]
[1766066190395,0.59,2971.7,2971.0,0.001]
[1766066190830,0.59,2971.6,2971.0,0.001]
[1766066191496,14.17610389,2971.6,2971.0,0.001]
[1766066191696,10.2209,2971.5,2970.1,0.10157612]
[1766066191893,2.472,2971.5,2970.2,0.405504]
[1766066192241,10.2209,2971.4,2970.2,0.405504]
[1766066192391,3.95520389,2971.6,2970.2,0.405504]
[1766066192601,8.96419891,2972.2,2970.2,0.405504]
[1766066192602,0.59,2971.5,2970.6,0.001]
[1766066192819,0.59,2971.4,2970.5,0.10157612]
[1766066193218,10.2209,2971.7,2970.1,0.10157612]
[1766066193402,3.36541697,2971.4,2970.1,0.10257612]
[1766066193601,0.59,2971.3,2970.1,0.10157612]
[1766066193835,10.2209,2971.2,2970.1,0.10157612]
[1766066194077,3.36449478,2972.3,2970.1,0.10157612]
[1766066194078,1.64396261,2974.0,2970.8,0.10157612]
[1766066194235,2.472,2976.3,2974.0,2.047904]
[1766066194432,16.74897674,2977.2,2974.4,1.74397612]
[1766066194433,2.472,2976.1,2974.4,1.74397612]
[1766066194667,2.472,2976.1,2974.7,0.10157612]
[1766066194851,2.472,2976.1,2974.8,0.01678264]
[1766066195175,3.062,2976.0,2974.7,10.8]
[1766066195381,3.062,2976.0,2974.9,10.8]
[1766066195678,2.472,2975.9,2974.6,10.8]
[1766066196165,4.25645381,2976.0,2974.6,10.8]
[1766066196166,0.59,2976.0,2975.0,10.8]
[1766066196669,3.95023363,2976.0,2974.7,10.8]
[1766066196859,3.95023363,2976.0,2974.9,10.8]
[1766066197045,3.95023363,2976.0,2974.7,10.8]
[1766066197046,2.472,2975.9,2974.7,10.8]
[1766066197253,10.2209,2975.9,2974.7,10.8]
[1766066197635,3.36044088,2975.8,2974.7,10.8]
[1766066197839,2.472,2975.6,2974.2,10.8]
[1766066198047,0.59,2975.5,2974.2,10.8]
[1766066198348,10.2209,2975.4,2974.3,10.8]
[1766066198550,0.59,2975.3,2974.3,10.8]
[1766066199147,8.3389,2975.3,2974.3,10.8]
[1766066199348,10.8109,2975.3,2974.2,10.8]
[1766066199632,5.83311858,2975.2,2974.2,10.8]
[1766066199826,16.94233716,2975.2,2974.2,10.8]
[1766066200077,10.2209,2975.1,2974.2,10.8]
[1766066200374,10.2209,2975.1,2974.3,10.8]
[1766066201070,0.59,2975.0,2974.3,10.8]
[1766066201833,0.59,2975.0,2974.2,10.8]
[1766066202269,0.59,2974.9,2974.2,10.8]
[1766066202485,0.59,2974.8,2974.2,10.8]
[1766066202672,0.59,2974.7,2974.3,1.1014948]
[1766066202862,0.59,2974.7,2974.4,10.8]
[1766066203978,3.36095863,2975.4,2974.4,10.8]
[1766066204173,13.28547849,2975.6,2974.4,10.8]
[1766066204174,0.59,2975.3,2974.4,10.8]
[1766066204952,0.59,2975.3,2974.6,10.8]
[1766066205162,0.59,2975.3,2974.8,10.8]
[1766066205493,9.9248,2975.2,2974.2,10.8]
[1766066205648,13.28601898,2975.2,2974.2,10.8]
[1766066206158,3.36121898,2975.2,2974.2,10.8]
[1766066206363,9.9248,2975.1,2974.2,10.8]
[1766066206562,9.9248,2975.1,2973.8,10.8]
[1766066206744,3.95103086,2975.3,2974.0,10.8]
[1766066206946,17.23686172,2975.3,2974.0,10.8]
[1766066207182,10.5148,2975.3,2974.0,10.8]
[1766066207679,13.87580841,2975.3,2974.0,10.8]
[1766066208581,9.9248,2975.2,2974.0,10.8]
[1766066208746,9.9248,2975.0,2974.1,10.8]
[1766066209450,9.9248,2975.0,2974.6,10.8]
[1766066209650,0.589,2974.9,2974.6,10.8]
[1766066210489,0.1266,2974.8,2974.6,10.8]
[1766066210697,0.589,2974.7,2974.6,10.8]
[1766066212251,13.28543644,2975.7,2974.6,10.8]
[1766066212543,0.589,2975.6,2974.7,10.8]
[1766066212688,0.589,2975.5,2974.7,10.8]
[1766066212989,10.5138,2975.5,2974.7,10.8]
[1766066213191,10.5138,2975.5,2974.6,10.8]
[1766066213487,0.589,2975.5,2974.6,10.8]
[1766066213673,7.4875,2975.4,2974.5,0.001]
[1766066213878,0.589,2975.5,2974.5,0.001]
[1766066213879,9.9248,2975.1,2974.5,0.001]
[1766066214210,10.08335574,2975.2,2973.3,10.56595635]
[1766066214211,8.0765,2975.0,2973.3,10.56595635]
[1766066214356,2.4373,2974.9,2973.6,10.3704]
[1766066214697,9.9248,2974.9,2973.6,10.3704]
[1766066214858,9.9248,2974.9,2973.7,1.03704]
[1766066215188,7.4875,2974.7,2973.7,1.03704]
[1766066215484,7.4875,2974.7,2973.1,0.10157612]
[1766066215485,0.589,2974.6,2973.1,0.10157612]
[1766066215685,0.589,2974.6,2973.5,10.3704]
[1766066216602,3.95082264,2974.6,2973.5,10.3704]
[1766066217101,0.589,2974.6,2973.6,0.01681993]
[1766066217399,0.589,2974.6,2973.6,2.3934]
[1766066217599,0.589,2974.6,2973.6,11.40754]
[1766066218303,0.589,2974.5,2974.0,2.3934]
[1766066218602,0.589,2974.5,2973.5,0.001]
[1766066218901,0.589,2974.6,2973.9,1.034]
[1766066219108,0.589,2974.7,2973.9,8.301]
[1766066219287,0.589,2974.7,2973.6,7.267]
[1766066219487,3.0263,2974.7,2973.7,0.7268]
[1766066220303,3.0263,2974.7,2973.5,0.001]
[1766066220565,2.5712,2974.3,2973.5,0.001]
[1766066220779,3.95068353,2974.7,2973.5,0.001]
[1766066220780,10.0893,2974.2,2973.5,0.001]
[1766066221080,2.5712,2974.6,2973.5,0.001]
[1766066221286,3.95068353,2974.7,2973.5,7.268]
[1766066221464,3.95068353,2974.7,2973.6,7.28381881]
[1766066221465,0.589,2974.7,2973.6,7.28381881]
[1766066221668,0.589,2974.7,2973.6,7.267]
[1766066222402,10.0893,2975.0,2973.8,7.267]
[1766066222601,3.36145752,2974.9,2973.8,7.267]
[1766066222908,0.002,2975.9,2974.0,0.10157612]
[1766066223078,0.002,2975.9,2974.2,7.267]
[1766066223079,2.5712,2975.7,2974.2,7.267]
[1766066223276,2.5712,2975.5,2974.3,0.589]
[1766066223481,2.5712,2975.3,2974.3,0.589]
[1766066223886,7.5181,2975.6,2974.3,0.589]
[1766066224206,0.002,2975.9,2974.4,30.0]
[1766066224416,0.002,2975.9,2974.3,14.05271174]
[1766066224417,0.002,2976.4,2975.2,30.0]
[1766066224710,2.5732,2977.1,2975.6,0.46438023]
[1766066224711,0.002,2977.1,2975.6,0.46438023]
[1766066224870,0.002,2977.1,2975.9,7.1423]
[1766066225070,0.00620809,2979.0,2976.5,0.10157612]
[1766066225272,6.71990575,2979.0,2977.3,7.1403]
[1766066225596,6.71990575,2979.0,2976.9,0.10157612]
[1766066225597,2.5712,2978.2,2976.9,0.10157612]
[1766066225770,7.5181,2978.3,2977.1,7.1403]
[1766066225971,10.0893,2978.3,2977.2,0.589]
[1766066226172,3.3578456,2978.1,2976.9,0.10157612]
[1766066226516,16.80341306,2978.8,2977.1,7.24187612]
[1766066226733,0.36829813,2978.7,2977.7,0.10157612]
[1766066226873,0.36829813,2978.7,2977.8,0.589]
[1766066227079,2.5712,2978.6,2977.9,0.589]
[1766066227308,2.5712,2978.4,2977.1,0.10157612]
[1766066227550,2.5712,2978.4,2976.5,0.10157612]
[1766066227551,0.002,2977.0,2976.5,0.10157612]
[1766066227871,0.002,2977.0,2976.3,0.10157612]
[1766066227872,7.5181,2976.5,2975.3,0.10157612]
[1766066228067,2.5712,2976.9,2975.4,0.589]
[1766066228305,6.71862402,2976.8,2975.5,7.1403]
[1766066228616,6.71862402,2976.8,2975.7,0.10157612]
[1766066228617,3.35931201,2976.8,2975.7,0.10157612]
[1766066228823,7.5201,2977.0,2976.1,0.10157612]
[1766066228824,0.002,2977.0,2976.1,0.10157612]
[1766066229047,0.002,2977.0,2976.1,7.24187612]
[1766066229176,0.002,2977.0,2976.4,0.10157612]
[1766066229376,0.002,2977.0,2976.3,0.589]
[1766066229579,0.002,2977.0,2976.4,0.589]
[1766066230109,0.002,2977.0,2975.8,7.1403]
[1766066230110,3.36110467,2977.0,2975.9,0.46438023]
[1766066230419,0.002,2977.0,2976.1,7.1403]
[1766066230580,3.35874159,2977.4,2976.2,7.94013637]
[1766066230776,3.35874159,2977.4,2976.3,7.15504254]
[1766066231115,6.7168189,2977.6,2976.3,7.1383]
[1766066231359,2.5712,2977.5,2974.3,0.10257612]
[1766066231507,2.5712,2977.0,2975.5,0.10157612]
[1766066231707,2.5712,2976.7,2975.5,7.23987612]
[1766066232014,7.5181,2976.8,2975.6,7.7263]
[1766066232215,6.71884972,2976.7,2975.7,0.588]
[1766066232417,2.3734,2976.6,2975.7,0.588]
[1766066232620,2.3734,2976.6,2975.5,0.10157612]
[1766066232621,7.6888,2976.2,2974.6,7.1383]
[1766066232857,7.6888,2975.6,2974.3,0.001]